[Event "Late-Titled-Tuesday-Blitz-June-04-2024"]
[Site "Chess.com"]
[Date "2024.06.04"]
[Round "8"]
[White "Felix-Rose"]
[Black "WilliamAlfaroCaracas"]
[Result "0-1"]
[WhiteElo "2315"]
[BlackElo "2365"]
[TimeControl "180+1"]
[EndTime "15:25:49 PDT"]
[Termination "WilliamAlfaroCaracas won on time"]

1. e4 {[%clk 0:03:00.9]} 1... c5 {[%clk 0:02:56.3]} 2. Nf3 {[%clk 0:03:00.9]}
2... Nc6 {[%clk 0:02:55.3]} 3. d4 {[%clk 0:03:01]} 3... cxd4 {[%clk 0:02:55.3]}
4. Nxd4 {[%clk 0:03:01.9]} 4... d6 {[%clk 0:02:53.6]} 5. Nc3 {[%clk 0:03:01.9]}
5... Nf6 {[%clk 0:02:53.9]} 6. Bg5 {[%clk 0:03:01.4]} 6... Bd7 {[%clk
0:02:51.8]} 7. Qd2 {[%clk 0:02:57.5]} 7... Qa5 {[%clk 0:02:43.2]} 8. Bxf6 {[%clk
0:02:52.4]} 8... gxf6 {[%clk 0:02:41.4]} 9. Bb5 {[%clk 0:02:51.9]} 9... e6
{[%clk 0:02:32.3]} 10. Nb3 {[%clk 0:02:47]} 10... Qc7 {[%clk 0:02:28.9]} 11. Be2
{[%clk 0:02:35.5]} 11... a6 {[%clk 0:02:25.2]} 12. Bh5 {[%clk 0:02:34.1]} 12...
b5 {[%clk 0:02:16.3]} 13. f4 {[%clk 0:02:29.2]} 13... b4 {[%clk 0:02:13.4]} 14.
Ne2 {[%clk 0:02:28.2]} 14... a5 {[%clk 0:02:11.4]} 15. f5 {[%clk 0:02:20.2]}
15... Bg7 {[%clk 0:02:08.5]} 16. fxe6 {[%clk 0:02:10.5]} 16... Bxe6 {[%clk
0:02:09.4]} 17. Nf4 {[%clk 0:02:08.5]} 17... O-O {[%clk 0:02:05.8]} 18. O-O
{[%clk 0:01:50.8]} 18... a4 {[%clk 0:02:02.3]} 19. Nc1 {[%clk 0:01:22.7]} 19...
Ne5 {[%clk 0:01:53.8]} 20. Ncd3 {[%clk 0:01:13]} 20... Nc4 {[%clk 0:01:48.7]}
21. Qxb4 {[%clk 0:01:03.9]} 21... a3 {[%clk 0:01:46.1]} 22. bxa3 {[%clk
0:01:01.4]} 22... f5 {[%clk 0:01:40.3]} 23. Rae1 {[%clk 0:00:44.1]} 23... Rfb8
{[%clk 0:01:31.7]} 24. Nxe6 {[%clk 0:00:11.5]} 24... fxe6 {[%clk 0:01:32.6]} 25.
Qxb8+ {[%clk 0:00:09.6]} 25... Rxb8 {[%clk 0:01:30.4]} 26. exf5 {[%clk
0:00:10.5]} 26... exf5 {[%clk 0:01:29.8]} 27. Rxf5 {[%clk 0:00:09.7]} 27... Rf8
{[%clk 0:01:29.6]} 28. Rxf8+ {[%clk 0:00:06.4]} 28... Bxf8 {[%clk 0:01:30.5]}
29. Re8 {[%clk 0:00:05.2]} 29... Ne3 {[%clk 0:01:12.8]} 30. Nf4 {[%clk
0:00:03.1]} 30... Qb6 {[%clk 0:00:37.1]} 0-1

[Event "Late-Titled-Tuesday-Blitz-June-04-2024"]
[Site "Chess.com"]
[Date "2024.06.04"]
[Round "8"]
[White "osielchesslover2011"]
[Black "cthake"]
[Result "1-0"]
[WhiteElo "2224"]
[BlackElo "1752"]
[TimeControl "180+1"]
[EndTime "15:25:54 PDT"]
[Termination "osielchesslover2011 won by checkmate"]

1. e4 {[%clk 0:03:00.9]} 1... c5 {[%clk 0:02:59.4]} 2. Nf3 {[%clk 0:03:00.2]}
2... Nc6 {[%clk 0:02:59.3]} 3. d4 {[%clk 0:03:00.6]} 3... cxd4 {[%clk
0:02:59.5]} 4. Nxd4 {[%clk 0:03:01.1]} 4... e5 {[%clk 0:02:56.8]} 5. Nb5 {[%clk
0:02:59.9]} 5... d6 {[%clk 0:02:57.1]} 6. N1c3 {[%clk 0:02:58.4]} 6... a6 {[%clk
0:02:55.1]} 7. Na3 {[%clk 0:02:58.2]} 7... Nf6 {[%clk 0:02:54.5]} 8. Nd5 {[%clk
0:02:57.1]} 8... b5 {[%clk 0:02:47.3]} 9. Bg5 {[%clk 0:02:54]} 9... Be7 {[%clk
0:02:46.7]} 10. Bd3 {[%clk 0:02:51.6]} 10... Nxd5 {[%clk 0:02:32]} 11. exd5
{[%clk 0:02:49]} 11... Bxg5 {[%clk 0:02:15.9]} 12. dxc6 {[%clk 0:02:47.9]} 12...
d5 {[%clk 0:02:09.2]} 13. O-O {[%clk 0:02:12.7]} 13... O-O {[%clk 0:02:07.4]}
14. c3 {[%clk 0:01:46.6]} 14... Qc7 {[%clk 0:01:56.3]} 15. Nc2 {[%clk
0:01:44.3]} 15... Qxc6 {[%clk 0:01:54.6]} 16. Nb4 {[%clk 0:01:43.9]} 16... Qc5
{[%clk 0:01:51.8]} 17. Nxd5 {[%clk 0:01:43.3]} 17... Bb7 {[%clk 0:01:49.9]} 18.
Nb4 {[%clk 0:01:03.4]} 18... Rad8 {[%clk 0:01:46.5]} 19. Qh5 {[%clk 0:00:59.3]}
19... Bh6 {[%clk 0:01:44.5]} 20. Rad1 {[%clk 0:00:52.3]} 20... a5 {[%clk
0:01:38.2]} 21. Nc2 {[%clk 0:00:48.7]} 21... Qc6 {[%clk 0:01:35.8]} 22. Ne3
{[%clk 0:00:16.9]} 22... e4 {[%clk 0:01:07.3]} 23. Be2 {[%clk 0:00:14.8]} 23...
Bxe3 {[%clk 0:01:00.9]} 24. fxe3 {[%clk 0:00:14.3]} 24... b4 {[%clk 0:00:53.3]}
25. cxb4 {[%clk 0:00:12.6]} 25... Rxd1 {[%clk 0:00:52.4]} 26. Bxd1 {[%clk
0:00:09.6]} 26... axb4 {[%clk 0:00:52.5]} 27. Bb3 {[%clk 0:00:09.8]} 27... Qg6
{[%clk 0:00:51.3]} 28. Qb5 {[%clk 0:00:06.7]} 28... Ba6 {[%clk 0:00:49.8]} 29.
Bxf7+ {[%clk 0:00:04.2]} 29... Kh8 {[%clk 0:00:44.1]} 30. Qxb4 {[%clk
0:00:02.9]} 30... Qg5 {[%clk 0:00:38.4]} 31. Rf2 {[%clk 0:00:02.1]} 31... Qxe3
{[%clk 0:00:36.1]} 32. Qxf8# {[%clk 0:00:02.7]} 1-0

[Event "Late-Titled-Tuesday-Blitz-June-04-2024"]
[Site "Chess.com"]
[Date "2024.06.04"]
[Round "8"]
[White "aghasiyevkamal"]
[Black "DeTimmerman"]
[Result "0-1"]
[WhiteElo "2619"]
[BlackElo "2778"]
[TimeControl "180+1"]
[EndTime "15:25:58 PDT"]
[Termination "DeTimmerman won on time"]

1. e4 {[%clk 0:03:00.9]} 1... e5 {[%clk 0:02:55.4]} 2. Nf3 {[%clk 0:02:59.5]}
2... Nc6 {[%clk 0:02:55.6]} 3. Bc4 {[%clk 0:02:58.6]} 3... Nf6 {[%clk
0:02:55.8]} 4. d3 {[%clk 0:02:57.6]} 4... Be7 {[%clk 0:02:56.1]} 5. O-O {[%clk
0:01:59.5]} 5... O-O {[%clk 0:02:57]} 6. Re1 {[%clk 0:01:56.2]} 6... d6 {[%clk
0:02:57.1]} 7. a4 {[%clk 0:01:50.5]} 7... Kh8 {[%clk 0:02:57.2]} 8. a5 {[%clk
0:01:01.2]} 8... a6 {[%clk 0:02:56.9]} 9. h3 {[%clk 0:00:57.4]} 9... Ng8 {[%clk
0:02:57.2]} 10. Nc3 {[%clk 0:00:52.6]} 10... f5 {[%clk 0:02:57.4]} 11. Nd5
{[%clk 0:00:49.2]} 11... Bf6 {[%clk 0:02:57.8]} 12. c3 {[%clk 0:00:35]} 12...
Nce7 {[%clk 0:02:57.8]} 13. Nxf6 {[%clk 0:00:10.1]} 13... Nxf6 {[%clk
0:02:58.7]} 14. Bg5 {[%clk 0:00:09.4]} 14... fxe4 {[%clk 0:02:47.8]} 15. dxe4
{[%clk 0:00:09.4]} 15... Qe8 {[%clk 0:02:48.1]} 16. Nh4 {[%clk 0:00:08.7]} 16...
Ng6 {[%clk 0:02:29.3]} 17. Bxf6 {[%clk 0:00:08.1]} 17... Rxf6 {[%clk 0:02:29.1]}
18. Qh5 {[%clk 0:00:08.2]} 18... Bd7 {[%clk 0:02:18]} 19. Re3 {[%clk 0:00:08.3]}
19... Nf4 {[%clk 0:02:15.4]} 20. Qxe8+ {[%clk 0:00:06.5]} 20... Rxe8 {[%clk
0:02:16.3]} 21. Rae1 {[%clk 0:00:05.7]} 21... Ref8 {[%clk 0:02:14.8]} 22. Kh2
{[%clk 0:00:05.2]} 22... h6 {[%clk 0:02:13.5]} 23. b4 {[%clk 0:00:04.7]} 23...
g5 {[%clk 0:02:10.4]} 24. Nf5 {[%clk 0:00:04.9]} 24... Bxf5 {[%clk 0:02:07.3]}
25. exf5 {[%clk 0:00:05.3]} 25... Rxf5 {[%clk 0:02:08.2]} 26. Rf3 {[%clk
0:00:05.9]} 26... R5f6 {[%clk 0:02:06.6]} 27. g3 {[%clk 0:00:04.5]} 27... Ng6
{[%clk 0:02:06.4]} 28. Rxf6 {[%clk 0:00:05.1]} 28... Rxf6 {[%clk 0:02:07.3]} 29.
Kg2 {[%clk 0:00:04.6]} 29... Ne7 {[%clk 0:02:07.1]} 30. Bd3 {[%clk 0:00:04.5]}
30... Kg7 {[%clk 0:02:05.5]} 31. c4 {[%clk 0:00:04.9]} 31... Nc6 {[%clk
0:02:04]} 32. Rb1 {[%clk 0:00:04.5]} 32... Rf8 {[%clk 0:01:51.4]} 33. Be4 {[%clk
0:00:04.8]} 33... Kf6 {[%clk 0:01:52]} 34. Kf1 {[%clk 0:00:04.5]} 34... Ke7
{[%clk 0:01:52.1]} 35. Ke1 {[%clk 0:00:04.7]} 35... Kd7 {[%clk 0:01:52.3]} 36.
Rb2 {[%clk 0:00:02.7]} 36... b6 {[%clk 0:01:45.6]} 37. axb6 {[%clk 0:00:02.6]}
37... cxb6 {[%clk 0:01:46.5]} 38. Bd5 {[%clk 0:00:02.9]} 38... Kc7 {[%clk
0:01:44.3]} 39. b5 {[%clk 0:00:03.4]} 39... axb5 {[%clk 0:01:44.5]} 40. cxb5
{[%clk 0:00:04.3]} 40... Nd4 {[%clk 0:01:43.6]} 41. Ra2 {[%clk 0:00:04.7]} 41...
Nxb5 {[%clk 0:01:41.9]} 42. Rc2+ {[%clk 0:00:04.3]} 42... Kb8 {[%clk 0:01:21]}
43. Rb2 {[%clk 0:00:03.4]} 43... Nd4 {[%clk 0:01:12.3]} 44. Rxb6+ {[%clk
0:00:03.5]} 44... Kc7 {[%clk 0:01:13.2]} 45. Rb7+ {[%clk 0:00:03.4]} 45... Kc8
{[%clk 0:01:14.1]} 46. Rh7 {[%clk 0:00:03.3]} 46... Rf6 {[%clk 0:01:11.6]} 47.
Be4 {[%clk 0:00:02.2]} 47... Ne6 {[%clk 0:01:09.6]} 48. Bd5 {[%clk 0:00:01.4]}
48... Nc7 {[%clk 0:01:10]} 0-1

[Event "Late-Titled-Tuesday-Blitz-June-04-2024"]
[Site "Chess.com"]
[Date "2024.06.04"]
[Round "8"]
[White "Hikaru"]
[Black "rasmussvane"]
[Result "1-0"]
[WhiteElo "3212"]
[BlackElo "2918"]
[TimeControl "180+1"]
[EndTime "15:25:59 PDT"]
[Termination "Hikaru won by resignation"]

1. d4 {[%clk 0:03:00.9]} 1... Nf6 {[%clk 0:02:56.1]} 2. c4 {[%clk 0:02:59.6]}
2... e6 {[%clk 0:02:56.1]} 3. Nc3 {[%clk 0:03:00.2]} 3... Bb4 {[%clk 0:02:49.9]}
4. f3 {[%clk 0:03:00.3]} 4... d5 {[%clk 0:02:25.6]} 5. a3 {[%clk 0:03:00]} 5...
Be7 {[%clk 0:02:24.9]} 6. cxd5 {[%clk 0:02:58.4]} 6... exd5 {[%clk 0:02:20.1]}
7. Bf4 {[%clk 0:02:57.4]} 7... c5 {[%clk 0:02:12.2]} 8. e3 {[%clk 0:02:57.7]}
8... O-O {[%clk 0:02:11.6]} 9. Bd3 {[%clk 0:02:57.1]} 9... Nc6 {[%clk
0:02:09.2]} 10. Nge2 {[%clk 0:02:57]} 10... Be6 {[%clk 0:01:53.4]} 11. Bg3
{[%clk 0:02:52.4]} 11... Nh5 {[%clk 0:01:45.6]} 12. Bf2 {[%clk 0:02:52.3]} 12...
cxd4 {[%clk 0:01:45.9]} 13. exd4 {[%clk 0:02:50.5]} 13... Bd6 {[%clk 0:01:46.3]}
14. Qd2 {[%clk 0:02:29.4]} 14... Qf6 {[%clk 0:01:37.1]} 15. Be3 {[%clk
0:02:29.5]} 15... h6 {[%clk 0:01:00]} 16. O-O {[%clk 0:02:21.8]} 16... Qh4
{[%clk 0:00:55.1]} 17. g3 {[%clk 0:02:19.5]} 17... Qe7 {[%clk 0:00:50.9]} 18.
Bxh6 {[%clk 0:01:56.3]} 18... f5 {[%clk 0:00:32.2]} 19. Bg5 {[%clk 0:01:50.6]}
19... Qf7 {[%clk 0:00:32.6]} 20. Rae1 {[%clk 0:01:33.9]} 20... Rae8 {[%clk
0:00:30.4]} 21. Bb1 {[%clk 0:01:32.1]} 21... Na5 {[%clk 0:00:25.6]} 22. Nb5
{[%clk 0:01:31.2]} 22... Nc4 {[%clk 0:00:25.1]} 23. Nxd6 {[%clk 0:01:28.1]}
23... Nxd6 {[%clk 0:00:26]} 24. b3 {[%clk 0:01:25.4]} 24... Bd7 {[%clk
0:00:23.4]} 25. Nf4 {[%clk 0:01:23.4]} 25... Nxf4 {[%clk 0:00:18.7]} 26. Bxf4
{[%clk 0:01:23.5]} 26... Nc8 {[%clk 0:00:17.9]} 27. Rc1 {[%clk 0:01:12.5]} 27...
Bc6 {[%clk 0:00:17]} 28. Bd3 {[%clk 0:01:09.3]} 28... Re6 {[%clk 0:00:16.1]} 29.
Be5 {[%clk 0:01:05.2]} 29... Ne7 {[%clk 0:00:15.7]} 30. f4 {[%clk 0:01:03.2]}
30... Nc8 {[%clk 0:00:13.3]} 31. g4 {[%clk 0:00:56.5]} 31... fxg4 {[%clk
0:00:10.8]} 32. f5 {[%clk 0:00:57.2]} 32... Rf6 {[%clk 0:00:02.6]} 33. Rf4
{[%clk 0:00:56.2]} 33... Nd6 {[%clk 0:00:02.7]} 34. Bxf6 {[%clk 0:00:55.8]}
34... Qxf6 {[%clk 0:00:03.6]} 35. Rxg4 {[%clk 0:00:56.5]} 35... Nxf5 {[%clk
0:00:03.4]} 36. Rf1 {[%clk 0:00:55]} 36... Bd7 {[%clk 0:00:03.9]} 37. Qg2 {[%clk
0:00:52.2]} 37... Qh6 {[%clk 0:00:02.7]} 38. Qxd5+ {[%clk 0:00:43.9]} 38... Be6
{[%clk 0:00:02.7]} 39. Qxe6+ {[%clk 0:00:44.5]} 39... Qxe6 {[%clk 0:00:02.6]}
40. Bc4 {[%clk 0:00:45.2]} 40... Qxc4 {[%clk 0:00:03]} 41. bxc4 {[%clk
0:00:46.1]} 1-0

[Event "Late-Titled-Tuesday-Blitz-June-04-2024"]
[Site "Chess.com"]
[Date "2024.06.04"]
[Round "8"]
[White "azzbrn"]
[Black "osh1ro"]
[Result "0-1"]
[WhiteElo "2508"]
[BlackElo "2626"]
[TimeControl "180+1"]
[EndTime "15:26:05 PDT"]
[Termination "osh1ro won by checkmate"]

1. e4 {[%clk 0:03:00.9]} 1... e6 {[%clk 0:02:59.9]} 2. d4 {[%clk 0:03:00.8]}
2... d5 {[%clk 0:02:59.7]} 3. e5 {[%clk 0:03:01.3]} 3... c5 {[%clk 0:02:58.5]}
4. c3 {[%clk 0:03:01.8]} 4... Nc6 {[%clk 0:02:58.7]} 5. Nf3 {[%clk 0:03:01.5]}
5... Qb6 {[%clk 0:02:59.3]} 6. a3 {[%clk 0:03:01.6]} 6... cxd4 {[%clk
0:02:58.9]} 7. cxd4 {[%clk 0:03:02.5]} 7... Bd7 {[%clk 0:02:59.2]} 8. b4 {[%clk
0:03:03]} 8... Rc8 {[%clk 0:02:59.6]} 9. Bb2 {[%clk 0:03:03.2]} 9... Na5 {[%clk
0:02:59.8]} 10. Nbd2 {[%clk 0:03:03.6]} 10... Nc4 {[%clk 0:03:00.1]} 11. Nxc4
{[%clk 0:03:04]} 11... dxc4 {[%clk 0:03:00.7]} 12. Rc1 {[%clk 0:03:04.9]} 12...
a5 {[%clk 0:02:56.1]} 13. Nd2 {[%clk 0:03:01.1]} 13... axb4 {[%clk 0:02:30.4]}
14. Nxc4 {[%clk 0:03:00.9]} 14... Qa7 {[%clk 0:02:31]} 15. axb4 {[%clk
0:02:49.9]} 15... Bxb4+ {[%clk 0:02:30]} 16. Bc3 {[%clk 0:02:49.8]} 16... Be7
{[%clk 0:02:20.3]} 17. Ra1 {[%clk 0:02:13.2]} 17... Qb8 {[%clk 0:02:15.7]} 18.
Nb6 {[%clk 0:01:39.9]} 18... Rxc3 {[%clk 0:02:14.1]} 19. Ra8 {[%clk 0:01:37]}
19... Qxa8 {[%clk 0:02:14.1]} 20. Nxa8 {[%clk 0:01:37.9]} 20... Bb4 {[%clk
0:02:14.1]} 21. Nc7+ {[%clk 0:01:01]} 21... Rxc7+ {[%clk 0:01:50.5]} 22. Ke2
{[%clk 0:01:01.2]} 22... Ne7 {[%clk 0:01:37.8]} 23. Qb3 {[%clk 0:00:37.9]} 23...
Nd5 {[%clk 0:01:35.9]} 24. f3 {[%clk 0:00:22.5]} 24... Bb5+ {[%clk 0:01:05.7]}
25. Kf2 {[%clk 0:00:21.3]} 25... Bxf1 {[%clk 0:01:06.6]} 26. Rxf1 {[%clk
0:00:20.3]} 26... O-O {[%clk 0:01:07.5]} 27. Kg3 {[%clk 0:00:13.6]} 27... Ra8
{[%clk 0:01:04.2]} 28. Qb2 {[%clk 0:00:09]} 28... g6 {[%clk 0:01:03.2]} 29. Ra1
{[%clk 0:00:06.9]} 29... Rac8 {[%clk 0:01:00.4]} 30. Ra4 {[%clk 0:00:04.4]}
30... Rc2 {[%clk 0:01:00.2]} 31. Qb1 {[%clk 0:00:04.4]} 31... R8c4 {[%clk
0:00:52.3]} 32. Ra8+ {[%clk 0:00:02.4]} 32... Kg7 {[%clk 0:00:52.3]} 33. Qa1
{[%clk 0:00:03]} 33... Ne3 {[%clk 0:00:43.6]} 34. Kh3 {[%clk 0:00:02.7]} 34...
Nxg2 {[%clk 0:00:42.3]} 35. Qa4 {[%clk 0:00:03.4]} 35... Nf4+ {[%clk 0:00:39.5]}
36. Kg4 {[%clk 0:00:04.1]} 36... Rxd4 {[%clk 0:00:37.2]} 37. Qe8 {[%clk
0:00:02.9]} 37... Rg2+ {[%clk 0:00:36.8]} 38. Kh4 {[%clk 0:00:02.5]} 38... g5#
{[%clk 0:00:37.4]} 0-1

[Event "Late-Titled-Tuesday-Blitz-June-04-2024"]
[Site "Chess.com"]
[Date "2024.06.04"]
[Round "8"]
[White "Tol_Tol"]
[Black "AustinThomas12345"]
[Result "0-1"]
[WhiteElo "2380"]
[BlackElo "2485"]
[TimeControl "180+1"]
[EndTime "15:26:06 PDT"]
[Termination "AustinThomas12345 won on time"]

1. d4 {[%clk 0:02:53.1]} 1... Nf6 {[%clk 0:02:59.4]} 2. c4 {[%clk 0:02:52.5]}
2... e6 {[%clk 0:02:59.6]} 3. Nc3 {[%clk 0:02:52.7]} 3... Bb4 {[%clk 0:02:59.8]}
4. e3 {[%clk 0:02:52.8]} 4... O-O {[%clk 0:02:59.5]} 5. Bd3 {[%clk 0:02:53.1]}
5... d5 {[%clk 0:02:59.5]} 6. Nf3 {[%clk 0:02:53.1]} 6... dxc4 {[%clk
0:02:59.3]} 7. Bxc4 {[%clk 0:02:53.2]} 7... c5 {[%clk 0:02:59.9]} 8. O-O {[%clk
0:02:52.9]} 8... b6 {[%clk 0:02:58.3]} 9. a3 {[%clk 0:02:42.8]} 9... Bxc3 {[%clk
0:02:58]} 10. bxc3 {[%clk 0:02:43.7]} 10... Qc7 {[%clk 0:02:58.6]} 11. Bd3
{[%clk 0:02:42.6]} 11... Bb7 {[%clk 0:02:57.3]} 12. Qe2 {[%clk 0:02:42.4]} 12...
Nbd7 {[%clk 0:02:47.8]} 13. e4 {[%clk 0:02:41.5]} 13... cxd4 {[%clk 0:02:45.8]}
14. cxd4 {[%clk 0:02:41.4]} 14... e5 {[%clk 0:02:46]} 15. d5 {[%clk 0:02:27.9]}
15... Nc5 {[%clk 0:02:40]} 16. Bb2 {[%clk 0:02:24.3]} 16... Rfe8 {[%clk
0:02:37.2]} 17. Rac1 {[%clk 0:02:20.9]} 17... Nh5 {[%clk 0:02:31.6]} 18. g3
{[%clk 0:02:19.7]} 18... Qd6 {[%clk 0:02:27.4]} 19. Bb5 {[%clk 0:02:06.6]} 19...
Re7 {[%clk 0:02:23]} 20. Nh4 {[%clk 0:02:06.8]} 20... g6 {[%clk 0:02:14.1]} 21.
Qe3 {[%clk 0:01:36]} 21... f5 {[%clk 0:01:52.6]} 22. exf5 {[%clk 0:00:44.8]}
22... a6 {[%clk 0:01:41.4]} 23. Be2 {[%clk 0:00:42.7]} 23... Qf6 {[%clk
0:01:01.2]} 24. fxg6 {[%clk 0:00:37.8]} 24... hxg6 {[%clk 0:00:59.6]} 25. Bxh5
{[%clk 0:00:07]} 25... gxh5 {[%clk 0:00:59.3]} 26. f4 {[%clk 0:00:06.8]} 26...
exf4 {[%clk 0:00:39.9]} 27. Qd2 {[%clk 0:00:05.1]} 27... Qd6 {[%clk 0:00:25.8]}
28. Rxf4 {[%clk 0:00:04.4]} 28... Qxd5 {[%clk 0:00:26.3]} 29. Qxd5+ {[%clk
0:00:02.4]} 29... Bxd5 {[%clk 0:00:27.2]} 30. Nf5 {[%clk 0:00:02.9]} 30... Re2
{[%clk 0:00:25.6]} 31. Nh6+ {[%clk 0:00:01]} 31... Kh7 {[%clk 0:00:25.9]} 0-1

[Event "Late-Titled-Tuesday-Blitz-June-04-2024"]
[Site "Chess.com"]
[Date "2024.06.04"]
[Round "8"]
[White "AlexeiShirov"]
[Black "BogdanDeac"]
[Result "0-1"]
[WhiteElo "2892"]
[BlackElo "3016"]
[TimeControl "180+1"]
[EndTime "15:26:07 PDT"]
[Termination "BogdanDeac won by resignation"]

1. e4 {[%clk 0:03:00.9]} 1... e5 {[%clk 0:02:59.2]} 2. Nf3 {[%clk 0:03:00.6]}
2... Nc6 {[%clk 0:02:59.8]} 3. Bc4 {[%clk 0:03:00.1]} 3... Nf6 {[%clk
0:02:58.8]} 4. d3 {[%clk 0:02:59.8]} 4... Bc5 {[%clk 0:02:58.7]} 5. Bg5 {[%clk
0:02:59.3]} 5... d6 {[%clk 0:02:57.6]} 6. c3 {[%clk 0:02:55.3]} 6... h6 {[%clk
0:02:57.7]} 7. Bh4 {[%clk 0:02:54.1]} 7... a6 {[%clk 0:02:58.2]} 8. Nbd2 {[%clk
0:02:47]} 8... Ba7 {[%clk 0:02:57.5]} 9. O-O {[%clk 0:02:43.3]} 9... Qe7 {[%clk
0:02:56.3]} 10. b4 {[%clk 0:02:41]} 10... g5 {[%clk 0:02:55.6]} 11. Bg3 {[%clk
0:02:40.1]} 11... Nh7 {[%clk 0:02:54.2]} 12. a4 {[%clk 0:02:36.2]} 12... Nf8
{[%clk 0:02:51]} 13. b5 {[%clk 0:02:34]} 13... Na5 {[%clk 0:02:50.1]} 14. Bd5
{[%clk 0:02:33.5]} 14... Ng6 {[%clk 0:02:48.3]} 15. bxa6 {[%clk 0:02:04.4]}
15... c6 {[%clk 0:02:46.6]} 16. axb7 {[%clk 0:02:01.1]} 16... Bxb7 {[%clk
0:02:46.6]} 17. Ba2 {[%clk 0:02:00.7]} 17... h5 {[%clk 0:02:46.3]} 18. h3 {[%clk
0:01:52.5]} 18... Bc8 {[%clk 0:02:46.5]} 19. Kh1 {[%clk 0:01:23.8]} 19... g4
{[%clk 0:02:39.9]} 20. Ng1 {[%clk 0:01:23.2]} 20... Nf4 {[%clk 0:02:17.1]} 21.
h4 {[%clk 0:01:05.1]} 21... Nxd3 {[%clk 0:01:37.8]} 22. Nc4 {[%clk 0:01:03.1]}
22... Nxc4 {[%clk 0:01:00.1]} 23. Qxd3 {[%clk 0:01:02.5]} 23... Na5 {[%clk
0:01:00.2]} 24. f4 {[%clk 0:01:01.1]} 24... gxf3 {[%clk 0:00:48.7]} 25. Nxf3
{[%clk 0:01:00]} 25... f6 {[%clk 0:00:48]} 26. Ng5 {[%clk 0:00:44.6]} 26... Bc5
{[%clk 0:00:44]} 27. Rad1 {[%clk 0:00:19.1]} 27... Ba6 {[%clk 0:00:33.3]} 28.
Qf3 {[%clk 0:00:18.1]} 28... Bxf1 {[%clk 0:00:31.2]} 29. Ne6 {[%clk 0:00:17.5]}
29... Bc4 {[%clk 0:00:26.2]} 30. Bxc4 {[%clk 0:00:15.9]} 30... Nxc4 {[%clk
0:00:26.5]} 31. Qf5 {[%clk 0:00:13.2]} 31... Ne3 {[%clk 0:00:20.7]} 32. Qg6+
{[%clk 0:00:12.9]} 32... Qf7 {[%clk 0:00:20.8]} 33. Nc7+ {[%clk 0:00:10.8]}
33... Ke7 {[%clk 0:00:17.1]} 0-1

[Event "Late-Titled-Tuesday-Blitz-June-04-2024"]
[Site "Chess.com"]
[Date "2024.06.04"]
[Round "8"]
[White "RealPerangel"]
[Black "ulises2013"]
[Result "1-0"]
[WhiteElo "2761"]
[BlackElo "2898"]
[TimeControl "180+1"]
[EndTime "15:26:08 PDT"]
[Termination "RealPerangel won by checkmate"]

1. e4 {[%clk 0:02:49.5]} 1... g6 {[%clk 0:03:00.9]} 2. g3 {[%clk 0:02:49]} 2...
Bg7 {[%clk 0:03:01.8]} 3. Bg2 {[%clk 0:02:49.6]} 3... c5 {[%clk 0:03:02.3]} 4.
Ne2 {[%clk 0:02:50.1]} 4... Nc6 {[%clk 0:03:02.6]} 5. c3 {[%clk 0:02:50.7]} 5...
e5 {[%clk 0:03:02.6]} 6. d3 {[%clk 0:02:51.2]} 6... Nge7 {[%clk 0:03:03.1]} 7.
Be3 {[%clk 0:02:51.8]} 7... d6 {[%clk 0:02:55.7]} 8. O-O {[%clk 0:02:51.3]} 8...
O-O {[%clk 0:02:55.2]} 9. f4 {[%clk 0:02:52]} 9... f5 {[%clk 0:02:49.8]} 10. Nd2
{[%clk 0:02:51.8]} 10... Be6 {[%clk 0:02:47.2]} 11. Nf3 {[%clk 0:02:52]} 11...
h6 {[%clk 0:02:44.8]} 12. fxe5 {[%clk 0:02:52.2]} 12... dxe5 {[%clk 0:02:22.7]}
13. exf5 {[%clk 0:02:40.5]} 13... Nxf5 {[%clk 0:02:21.3]} 14. Bxc5 {[%clk
0:02:40.5]} 14... Rf7 {[%clk 0:02:21.5]} 15. g4 {[%clk 0:02:34.7]} 15... Nfe7
{[%clk 0:02:12.8]} 16. h3 {[%clk 0:02:34.1]} 16... Nd5 {[%clk 0:02:13]} 17. Qd2
{[%clk 0:02:33.1]} 17... Qd7 {[%clk 0:02:12]} 18. c4 {[%clk 0:02:27.1]} 18...
Nf4 {[%clk 0:02:00]} 19. Nxf4 {[%clk 0:02:00.4]} 19... exf4 {[%clk 0:01:58.5]}
20. Rae1 {[%clk 0:01:56.9]} 20... Rd8 {[%clk 0:01:56.4]} 21. b3 {[%clk
0:01:53.9]} 21... b6 {[%clk 0:01:50.3]} 22. Ba3 {[%clk 0:01:48.9]} 22... Kh7
{[%clk 0:01:29.4]} 23. Bb2 {[%clk 0:01:48.1]} 23... Bxb2 {[%clk 0:01:24.9]} 24.
Qxb2 {[%clk 0:01:48.1]} 24... Re7 {[%clk 0:01:25.3]} 25. Qf6 {[%clk 0:01:38.9]}
25... Bg8 {[%clk 0:01:08.7]} 26. Ng5+ {[%clk 0:01:31.3]} 26... hxg5 {[%clk
0:01:03.1]} 27. Bxc6 {[%clk 0:01:31.4]} 27... Rf7 {[%clk 0:00:55]} 28. Qxg5
{[%clk 0:01:18.4]} 28... Qxd3 {[%clk 0:00:53.6]} 29. Rf3 {[%clk 0:01:04.2]}
29... Qd4+ {[%clk 0:00:52.6]} 30. Kh1 {[%clk 0:01:04]} 30... Qf6 {[%clk
0:00:34.5]} 31. Qxf6 {[%clk 0:01:00.3]} 31... Rxf6 {[%clk 0:00:35.4]} 32. Re7+
{[%clk 0:00:59.9]} 32... Kh6 {[%clk 0:00:28.2]} 33. Be4 {[%clk 0:00:56.6]} 33...
g5 {[%clk 0:00:28.4]} 34. h4 {[%clk 0:00:55.5]} 34... gxh4 {[%clk 0:00:22.8]}
35. Re5 {[%clk 0:00:54.4]} 35... Kg7 {[%clk 0:00:17.8]} 36. Kh2 {[%clk
0:00:50.6]} 36... Rd2+ {[%clk 0:00:17.8]} 37. Kh3 {[%clk 0:00:50.5]} 37... Rxa2
{[%clk 0:00:17.7]} 38. Kxh4 {[%clk 0:00:50.3]} 38... Rh2+ {[%clk 0:00:17.2]} 39.
Kg5 {[%clk 0:00:49.4]} 39... Rb2 {[%clk 0:00:13.3]} 40. Bf5 {[%clk 0:00:47.8]}
40... Bf7 {[%clk 0:00:12.5]} 41. Kxf4 {[%clk 0:00:46.3]} 41... Rd6 {[%clk
0:00:12.8]} 42. Re7 {[%clk 0:00:44.7]} 42... Kf6 {[%clk 0:00:11.7]} 43. Rxa7
{[%clk 0:00:43.9]} 43... Rd4+ {[%clk 0:00:11.2]} 44. Be4 {[%clk 0:00:43.7]}
44... Be6 {[%clk 0:00:07.5]} 45. g5# {[%clk 0:00:41.6]} 1-0